bitfinex/quotes_BTCUSD_20230907
["timestamp","ask_amount","ask_price","bid_price","bid_amount"]
[1694121308721,0.048,26282.0,26281.0,0.84735703]
[1694121308962,0.048,26282.0,26281.0,0.85143703]
[1694121309177,0.024,26282.0,26281.0,0.40796381]
[1694121309390,0.02,26287.0,26281.0,0.62473703]
[1694121309603,0.02,26286.0,26285.0,0.02]
[1694121310093,0.02,26285.0,26281.0,0.08960481]
[1694121310301,0.17542129,26285.0,26283.0,0.02]
[1694121310541,0.02,26285.0,26284.0,0.02]
[1694121310749,0.02,26285.0,26281.0,0.42497803]
[1694121310991,0.02,26284.0,26283.0,0.02]
[1694121311455,0.02,26284.0,26283.0,0.41055322]
[1694121311650,0.02,26284.0,26283.0,0.022]
[1694121311897,0.02,26284.0,26283.0,0.41055322]
[1694121312332,0.044,26284.0,26283.0,0.41255322]
[1694121312539,0.044,26284.0,26283.0,0.41055322]
[1694121313470,0.024,26284.0,26283.0,0.60056454]
[1694121313646,0.048,26284.0,26283.0,1.88889154]
[1694121313985,0.048,26284.0,26283.0,2.70560404]
[1694121314206,0.048,26284.0,26283.0,2.66579954]
[1694121314372,0.02,26293.0,26292.0,0.02]
[1694121314654,0.02,26293.0,26292.0,0.59872322]
[1694121314812,0.02,26294.0,26292.0,0.81008222]
[1694121314997,0.02,26294.0,26293.0,0.51977222]
[1694121315236,0.02,26294.0,26293.0,0.77693222]
[1694121315498,0.02,26294.0,26293.0,1.63101422]
[1694121315698,0.04,26294.0,26293.0,0.141763]
[1694121315907,0.04,26294.0,26293.0,0.111219]
[1694121316128,0.02,26290.0,26289.0,0.02]
[1694121316367,0.17542129,26290.0,26289.0,0.51977222]
[1694121316561,0.02,26292.0,26291.0,0.02]
[1694121317003,0.02,26292.0,26291.0,0.131219]
[1694121317463,0.02,26292.0,26291.0,0.15418514]
[1694121317903,0.044,26292.0,26291.0,0.15618514]
[1694121318344,0.067,26292.0,26291.0,0.54673836]
[1694121318551,0.067,26292.0,26291.0,0.63649836]
[1694121318788,0.047,26292.0,26291.0,0.82672836]
[1694121318989,0.067,26292.0,26291.0,0.82930836]
[1694121319213,0.067,26292.0,26291.0,0.82954836]
[1694121319414,0.067,26292.0,26291.0,0.15818514]
[1694121319632,0.067,26292.0,26291.0,0.13818514]
[1694121319845,0.067,26292.0,26291.0,0.62881836]
[1694121320073,0.067,26292.0,26291.0,0.63529836]
[1694121320314,0.067,26292.0,26291.0,0.62947836]
[1694121320514,0.067,26292.0,26291.0,0.63067836]
[1694121320728,0.067,26292.0,26291.0,0.64375836]
[1694121320952,0.067,26292.0,26291.0,0.64141836]
[1694121321158,0.067,26292.0,26291.0,0.62977836]
[1694121321397,0.044,26292.0,26291.0,0.13618514]
[1694121321662,0.065,26292.0,26291.0,0.15818514]
[1694121321917,0.04511848,26292.0,26291.0,0.15818514]
[1694121322352,0.04511848,26292.0,26291.0,0.69542087]
[1694121322571,0.02511848,26292.0,26291.0,0.89873087]
[1694121322790,0.021,26292.0,26291.0,0.88797087]
[1694121323007,0.021,26292.0,26291.0,0.86476836]
[1694121323234,0.004,26292.0,26291.0,0.84812836]
[1694121323494,0.04,26294.0,26293.0,0.02]
[1694121323734,0.04,26294.0,26291.0,0.02696614]
[1694121323735,0.045,26292.0,26291.0,0.02696614]
[1694121323955,0.045,26292.0,26291.0,0.004]
[1694121324157,0.045,26292.0,26291.0,0.115219]
[1694121324375,0.045,26292.0,26291.0,0.13794299]
[1694121324593,0.041,26292.0,26291.0,0.13594299]
[1694121324812,0.02,26292.0,26291.0,0.13394299]
[1694121325024,0.044,26292.0,26291.0,0.13594299]
[1694121325255,1.64218222,26292.0,26291.0,0.02472399]
[1694121325520,0.067,26292.0,26291.0,0.02472399]
[1694121325732,0.797753,26292.0,26291.0,0.002]
[1694121325951,0.754166,26292.0,26291.0,0.004]
[1694121326176,0.02,26286.0,26285.0,0.02]
[1694121326392,0.17542129,26286.0,26285.0,0.111219]
[1694121326599,0.17542129,26286.0,26285.0,0.131219]
[1694121326835,0.02,26286.0,26285.0,0.15420269]
[1694121327674,0.044,26286.0,26285.0,0.15620269]
[1694121328138,0.068,26286.0,26285.0,0.04698369]
[1694121329127,0.044,26286.0,26285.0,0.02498369]
[1694121329382,0.044,26286.0,26285.0,0.04498369]
[1694121329640,0.044,26286.0,26285.0,0.02498369]
[1694121330526,0.068,26286.0,26285.0,0.02698369]
[1694121330729,0.068,26286.0,26280.0,0.19025]
[1694121330730,0.02,26284.0,26279.0,0.02]
[1694121330928,0.15542129,26283.0,26279.0,0.02]
[1694121332035,0.43555322,26286.0,26280.0,0.03203615]
[1694121332232,0.023,26285.0,26280.0,0.03203615]
[1694121332444,0.024,26284.0,26280.0,0.03203615]
[1694121332671,0.023,26283.0,26279.0,0.02]
[1694121332892,0.79506929,26283.0,26279.0,0.02]
[1694121333147,0.20242129,26283.0,26281.0,0.03208577]
[1694121333350,0.047,26283.0,26281.0,0.03208577]
[1694121333563,0.645209,26282.0,26281.0,0.03208577]
[1694121333774,0.023,26282.0,26279.0,0.021]
[1694121333992,0.023,26281.0,26279.0,0.021]
[1694121334199,0.023,26281.0,26279.0,0.02]
[1694121334434,0.023,26282.0,26276.0,0.09764]
[1694121334617,0.047,26283.0,26281.0,0.001]
[1694121335075,0.98342,26282.0,26281.0,0.001]
[1694121335348,1.04642,26282.0,26281.0,0.001]
[1694121335616,1.509629,26282.0,26281.0,0.001]
[1694121335861,0.045,26280.0,26272.0,0.015]
[1694121336118,0.2084629,26280.0,26279.0,0.001]
[1694121336331,0.368,26280.0,26279.0,0.001]
[1694121336548,0.368,26280.0,26272.0,0.015]
[1694121336549,1.554629,26280.0,26272.0,0.015]
[1694121336762,0.00019186,26277.0,26272.0,0.015]
[1694121337433,0.05003428,26287.0,26286.0,5.92430314]
[1694121337641,0.4385875,26287.0,26286.0,4.22935843]
[1694121337875,4.05471727,26287.0,26286.0,4.22935843]
[1694121338327,4.62325947,26287.0,26286.0,3.8217258]
[1694121338551,4.62397947,26287.0,26286.0,3.61437289]
[1694121338764,0.906,26285.0,26268.0,0.02]
[1694121338977,0.024,26277.0,26270.0,0.0072]
[1694121339193,0.54397451,26276.0,26272.0,0.002]
[1694121339402,1.73060351,26276.0,26272.0,0.002]
[1694121339811,1.186629,26275.0,26272.0,0.002]
[1694121340029,1.186629,26275.0,26268.0,0.02]
[1694121340030,0.68855322,26274.0,26268.0,0.02]
[1694121340243,0.023,26273.0,26272.0,0.02]
[1694121340466,0.1,26275.0,26273.0,0.03112363]
[1694121341149,0.1,26275.0,26272.0,0.022]
[1694121341358,0.1,26275.0,26272.0,0.09064]
[1694121341568,0.1,26275.0,26272.0,0.06998]
[1694121341790,0.1,26275.0,26272.0,0.08902]
[1694121342009,0.1,26275.0,26272.0,0.0907]
[1694121342251,0.024,26273.0,26272.0,0.08834]
[1694121342463,0.024,26273.0,26272.0,0.08974]
[1694121342680,0.024,26273.0,26272.0,0.09262]
[1694121342920,0.124,26275.0,26272.0,0.02]
[1694121343121,0.148,26275.0,26272.0,0.022]
[1694121343328,0.124,26275.0,26272.0,0.022]
[1694121343538,0.024,26273.0,26272.0,0.02]
[1694121343752,0.048,26273.0,26272.0,0.022]
[1694121343967,1.44095051,26273.0,26272.0,0.02]
[1694121344182,1.36527627,26273.0,26272.0,0.02]
[1694121344405,1.50027422,26273.0,26272.0,0.02]
[1694121344674,1.37645322,26273.0,26272.0,0.02]
[1694121344902,1.35245322,26273.0,26272.0,0.02]
[1694121345166,0.047,26273.0,26272.0,0.021]
[1694121345469,0.047,26273.0,26272.0,0.023]
[1694121345470,0.481447,26273.0,26272.0,0.023]
[1694121345688,0.481447,26273.0,26272.0,0.05107695]
[1694121345689,0.704437,26273.0,26272.0,0.05107695]
[1694121345923,0.8796567,26273.0,26272.0,0.05207695]
[1694121346174,0.726053,26273.0,26272.0,0.023]
[1694121346409,0.023,26273.0,26272.0,0.02]
[1694121346651,1.19923122,26273.0,26272.0,0.003]
[1694121346885,1.09662822,26273.0,26272.0,0.021]
[1694121347127,1.07300222,26273.0,26272.0,0.023]
[1694121347384,1.12169022,26273.0,26272.0,0.023]
[1694121347608,1.09312122,26273.0,26272.0,0.023]
[1694121347846,1.11674722,26273.0,26272.0,0.022]
[1694121348101,1.21243334,26273.0,26272.0,0.023]
[1694121348458,1.23615434,26273.0,26272.0,0.021]
[1694121348687,1.16947134,26273.0,26272.0,0.022]
[1694121348862,1.16709734,26273.0,26272.0,0.021]
[1694121349109,1.11947134,26273.0,26272.0,0.021]
[1694121349345,0.024,26273.0,26272.0,0.022]
[1694121349598,0.1,26275.0,26272.0,0.022]
[1694121349599,0.1,26275.0,26274.0,0.14]
[1694121349843,0.0567023,26281.0,26274.0,0.14]
[1694121350083,0.01127166,26280.0,26278.0,0.06]
[1694121350328,0.0907976,26285.0,26278.0,0.02]
[1694121350580,0.06,26282.0,26279.0,0.07584]
[1694121350831,0.06,26282.0,26279.0,0.24224]
[1694121351072,0.38855322,26284.0,26279.0,0.24458]
[1694121351315,0.38855322,26284.0,26280.0,0.06474]
[1694121351567,0.3,26283.0,26279.0,0.23978]
[1694121351840,0.05028338,26285.0,26284.0,0.06]
[1694121352129,0.02,26286.0,26285.0,0.06]
[1694121352599,0.02,26286.0,26285.0,0.19012]
[1694121352839,0.02,26287.0,26286.0,0.06]
[1694121353076,0.02,26286.0,26285.0,0.06]
[1694121353556,0.02,26284.0,26283.0,0.12]
[1694121354316,0.41155322,26284.0,26282.0,0.06]
[1694121354557,0.43155322,26283.0,26282.0,0.06]
[1694121355055,0.43155322,26283.0,26275.0,0.14352]
[1694121355056,0.61252983,26283.0,26280.0,0.06552]
[1694121355293,0.38855322,26281.0,26272.0,0.11107695]
[1694121355534,0.54397451,26280.0,26272.0,0.08]
[1694121355770,0.023,26279.0,26272.0,0.08]
[1694121356020,0.54397451,26278.0,26275.0,0.08]
[1694121356276,0.323,26277.0,26275.0,0.08]
[1694121356522,0.38855322,26276.0,26275.0,0.08]
[1694121356774,0.41155322,26276.0,26275.0,0.08]
[1694121357016,0.71155322,26276.0,26275.0,0.08]
[1694121357294,0.86398922,26276.0,26275.0,0.08]
[1694121357775,1.23560822,26276.0,26275.0,0.08]
[1694121358008,1.18798922,26276.0,26275.0,0.08]
[1694121358241,0.88798922,26276.0,26275.0,0.08]
[1694121358484,1.00678814,26276.0,26275.0,0.07912502]
[1694121358691,0.99878814,26276.0,26275.0,0.11016994]
[1694121358905,1.33040714,26276.0,26275.0,0.07912502]
[1694121359133,1.16398922,26276.0,26275.0,0.07912502]
[1694121359355,1.18798922,26276.0,26275.0,0.07912502]
[1694121360242,0.86498922,26276.0,26275.0,0.07912502]
[1694121360457,0.86498922,26276.0,26275.0,0.21912502]
[1694121360458,0.200436,26276.0,26275.0,0.21912502]
[1694121360694,0.048,26276.0,26275.0,0.35077752]
[1694121360904,0.024,26276.0,26275.0,0.31986502]
[1694121361118,0.024,26276.0,26275.0,0.35752813]
[1694121361326,0.024,26276.0,26275.0,0.35512813]
[1694121361327,0.048,26276.0,26275.0,0.35512813]
[1694121361559,0.024,26276.0,26275.0,0.35728813]
[1694121361773,0.09910106,26283.0,26275.0,0.36358813]
[1694121361774,0.02982899,26280.0,26275.0,0.36358813]
[1694121361995,0.015,26276.0,26275.0,0.36564813]
[1694121362199,0.015,26276.0,26275.0,0.36624813]
[1694121362447,0.015,26276.0,26275.0,0.25218813]
[1694121362651,0.014,26276.0,26275.0,0.36250813]
[1694121362857,0.014,26276.0,26275.0,0.36220813]
[1694121363107,0.014,26276.0,26275.0,0.37210813]
[1694121363336,0.024,26280.0,26275.0,0.11018813]
[1694121363537,0.024,26280.0,26277.0,0.02]
[1694121363538,0.38855322,26279.0,26277.0,0.02]
[1694121364236,0.12076985,26285.0,26278.0,0.1]
[1694121364448,0.12076985,26285.0,26280.0,0.1]
[1694121364449,0.50865114,26284.0,26280.0,0.1]
[1694121364664,0.09709792,26283.0,26280.0,0.1]
[1694121364866,0.41155322,26282.0,26280.0,0.1]
[1694121365111,0.41155322,26282.0,26281.0,0.04]
[1694121365319,0.41155322,26282.0,26281.0,0.03098367]
[1694121365531,0.41155322,26282.0,26281.0,0.07098367]
[1694121365742,0.024,26283.0,26282.0,0.06]
[1694121365942,0.43255322,26283.0,26281.0,0.1601]
[1694121366152,0.38855322,26283.0,26282.0,0.06]
[1694121366338,0.02,26285.0,26282.0,0.06]
[1694121366605,0.044,26283.0,26282.0,0.09007194]
[1694121366820,0.43255322,26283.0,26282.0,0.09007194]
[1694121367034,0.40855322,26283.0,26282.0,0.06]
[1694121367251,0.38855322,26283.0,26282.0,0.06]
[1694121367439,0.41255322,26283.0,26282.0,0.061]
[1694121367611,0.40555322,26283.0,26282.0,0.061]
[1694121367836,0.043,26283.0,26282.0,0.06]
[1694121368038,0.084,26283.0,26282.0,0.062]
[1694121368195,0.041,26283.0,26282.0,0.1597]
[1694121368432,0.041,26283.0,26282.0,0.25809194]
[1694121368632,0.041,26283.0,26282.0,0.25857194]
[1694121368852,0.041,26283.0,26282.0,0.28143194]
[1694121369051,0.041,26283.0,26282.0,0.28071194]
[1694121369256,0.041,26283.0,26282.0,0.27717194]
[1694121369460,0.041,26283.0,26282.0,0.66626516]
[1694121369675,0.02,26291.0,26289.0,0.08]
[1694121369904,0.02,26292.0,26289.0,0.08]
[1694121370104,0.1561964,26294.0,26293.0,0.04]
[1694121370105,0.266994,26294.0,26293.0,0.04]
[1694121370302,0.34378529,26294.0,26293.0,0.04]
[1694121370524,0.20758889,26294.0,26293.0,0.1458371]
[1694121370743,0.11679129,26294.0,26293.0,0.2571571]
[1694121370935,0.09254125,26294.0,26293.0,0.26168371]
[1694121371151,0.02,26296.0,26295.0,0.08]
[1694121371402,0.11646924,26296.0,26295.0,0.08]
[1694121371626,0.12805004,26296.0,26295.0,0.15392]
[1694121371836,0.12805004,26296.0,26295.0,0.15788]
[1694121372037,0.12805004,26296.0,26295.0,0.15512]
[1694121372251,0.0315808,26296.0,26295.0,0.1538]
[1694121372459,0.02,26297.0,26295.0,0.19021852]
[1694121372716,0.156197,26298.0,26297.0,0.06]
[1694121372924,0.2469946,26298.0,26297.0,0.06]
[1694121373127,0.34279239,26298.0,26297.0,0.06]
[1694121373548,0.26203019,26298.0,26297.0,0.08]
[1694121373757,0.246994,26299.0,26298.0,0.08]
[1694121373758,0.02,26299.0,26298.0,0.08]
[1694121373972,0.1107976,26300.0,26299.0,0.08]
[1694121374168,0.1158201,26300.0,26299.0,0.08]
[1694121374601,0.1107976,26301.0,26299.0,0.1729]
[1694121374812,0.02,26301.0,26300.0,0.08]
[1694121375016,0.11570685,26301.0,26300.0,0.10979533]
[1694121375227,0.11570685,26301.0,26300.0,0.17435533]
[1694121375432,0.11570685,26301.0,26300.0,0.10979533]
[1694121375859,0.01124196,26302.0,26300.0,0.17999533]
[1694121376069,0.03124196,26302.0,26301.0,0.08]
[1694121376480,0.03124196,26302.0,26301.0,0.14978]
[1694121376690,0.03124196,26302.0,26301.0,0.08]
[1694121376892,0.01124196,26302.0,26301.0,0.15146]
[1694121377100,0.04624196,26302.0,26301.0,0.155]
[1694121377303,0.05524196,26302.0,26301.0,0.15502]
[1694121377514,0.05524196,26302.0,26301.0,0.18310624]
[1694121377741,0.03824196,26302.0,26301.0,0.17742624]
[1694121377945,0.03124196,26302.0,26301.0,0.17810624]
[1694121378355,0.04624196,26302.0,26301.0,0.17746624]
[1694121378552,0.02624196,26302.0,26301.0,0.18094624]
[1694121378783,0.015,26302.0,26301.0,0.41288624]
[1694121379121,0.015,26302.0,26301.0,0.43508624]
[1694121379332,0.036,26302.0,26301.0,0.86127946]
[1694121379570,0.036,26302.0,26301.0,1.01793381]
[1694121379842,0.015,26302.0,26301.0,1.01089381]
[1694121380110,0.0201,26306.0,26305.0,0.12]
[1694121380280,0.0201,26306.0,26305.0,0.50855322]
[1694121380751,0.0201,26306.0,26305.0,0.20094]
[1694121380952,0.0201,26306.0,26305.0,0.2103]
[1694121381178,0.0201,26306.0,26305.0,0.21552]
[1694121381380,0.0201,26306.0,26305.0,0.60869322]
[1694121381573,0.0221,26306.0,26305.0,0.63719322]
[1694121381844,0.0201,26306.0,26305.0,0.62771322]
[1694121382073,0.0201,26306.0,26305.0,0.63665322]
[1694121382285,0.05000495,26306.0,26305.0,0.63623322]
[1694121382500,0.05000495,26306.0,26305.0,0.63137322]
[1694121382716,0.0201,26306.0,26305.0,0.62987322]
[1694121382964,0.0221,26306.0,26305.0,0.66395322]
[1694121383204,0.0171,26306.0,26305.0,0.65909322]
[1694121383409,0.0171,26306.0,26305.0,0.66095322]
[1694121383644,0.0151,26306.0,26305.0,0.74545654]
[1694121383856,0.0191,26306.0,26305.0,0.91603654]
[1694121384075,0.0191,26306.0,26305.0,0.76033654]
[1694121384298,0.0151,26306.0,26305.0,0.86359654]
[1694121384513,0.0191,26306.0,26305.0,1.98816754]
[1694121384719,0.0191,26306.0,26305.0,2.76377854]
[1694121384944,0.0191,26306.0,26305.0,3.66276954]
[1694121384945,0.0171,26306.0,26305.0,3.66276954]
[1694121385204,0.02,26319.0,26311.0,0.04]
[1694121385536,0.02,26319.0,26318.0,0.12]
[1694121385744,0.02,26319.0,26318.0,0.72612322]
[1694121385956,0.02,26319.0,26318.0,2.24599522]
[1694121386096,0.0201,26323.0,26322.0,0.1]
[1694121386330,0.0201,26323.0,26322.0,0.50855322]
[1694121386619,0.0201,26323.0,26322.0,0.20772]
[1694121386742,0.0201,26323.0,26322.0,0.24786]
[1694121387028,0.0201,26323.0,26322.0,0.2358]
[1694121387221,0.0201,26323.0,26322.0,0.67455322]
[1694121387435,0.0221,26323.0,26322.0,0.89659322]
[1694121387667,0.0221,26323.0,26322.0,0.88795322]
[1694121387880,0.0221,26323.0,26322.0,2.10737089]
[1694121388077,0.0221,26323.0,26322.0,2.86635089]
[1694121388309,0.0221,26323.0,26322.0,3.12611089]
[1694121388502,0.0221,26323.0,26322.0,3.12305089]
[1694121388717,0.0221,26323.0,26322.0,3.56883089]
[1694121388934,0.0221,26323.0,26322.0,1.36263089]
[1694121389145,0.0221,26323.0,26322.0,2.12829089]
[1694121389369,0.0231,26323.0,26322.0,3.13061089]
[1694121389599,0.0211,26323.0,26322.0,4.45249489]
[1694121389965,0.0221,26323.0,26322.0,4.57559489]
[1694121390088,0.0221,26323.0,26322.0,4.90039939]
[1694121390316,0.0211,26323.0,26322.0,4.92539939]
[1694121390516,0.0231,26323.0,26322.0,4.98899939]
[1694121390737,0.0201,26323.0,26322.0,4.93899939]
[1694121390950,0.0211,26323.0,26322.0,4.96399939]
[1694121391173,0.0231,26323.0,26322.0,4.98799939]
[1694121391407,0.0211,26323.0,26322.0,4.96399939]
[1694121391838,0.0211,26323.0,26322.0,4.96375939]
[1694121392071,0.0201,26328.0,26327.0,0.6936]
[1694121392275,0.0201,26328.0,26327.0,2.26872522]
[1694121392510,0.0201,26328.0,26327.0,2.68308522]
[1694121392728,0.0201,26328.0,26327.0,0.97338322]
[1694121392968,0.0201,26328.0,26327.0,0.99950322]
[1694121393214,0.0401,26328.0,26327.0,0.63125322]
[1694121393434,0.0421,26328.0,26327.0,0.63335322]
[1694121393708,0.0421,26328.0,26327.0,0.044]
[1694121393709,0.21952129,26328.0,26327.0,0.044]
[1694121393904,0.63403664,26328.0,26327.0,0.048]
[1694121394120,0.02,26326.0,26325.0,0.02]
[1694121394376,0.43155322,26326.0,26325.0,0.02]
[1694121395269,0.0441,26328.0,26327.0,0.1]
[1694121395725,0.0421,26328.0,26327.0,0.20460584]
[1694121395955,0.0401,26328.0,26327.0,0.21796584]
[1694121396175,0.0401,26328.0,26327.0,0.24246642]
[1694121396407,0.0641,26328.0,26327.0,0.22358584]
[1694121396622,0.0641,26328.0,26327.0,0.20988584]
[1694121396859,0.0401,26328.0,26327.0,0.21168584]
[1694121397079,0.0401,26328.0,26327.0,0.22896584]
[1694121397311,0.0441,26328.0,26327.0,0.25322584]
[1694121397518,0.0421,26328.0,26327.0,0.30774842]
[1694121397742,0.0441,26328.0,26327.0,0.29668584]
[1694121397919,0.0441,26328.0,26327.0,0.29248584]
[1694121398221,0.0441,26328.0,26327.0,0.27620584]
[1694121398222,0.0421,26328.0,26327.0,0.27620584]
[1694121398425,0.0441,26328.0,26327.0,0.29524584]
[1694121398650,0.0441,26328.0,26327.0,0.29590584]
[1694121398888,0.0441,26328.0,26327.0,0.29782584]
[1694121399123,0.0441,26328.0,26327.0,0.29800584]
[1694121399355,0.0441,26328.0,26327.0,0.29776584]
[1694121399569,0.0441,26328.0,26327.0,0.29578584]
[1694121399825,0.0441,26328.0,26327.0,0.29698584]
[1694121400086,0.0241,26328.0,26327.0,0.88857906]
[1694121400352,0.0241,26328.0,26327.0,0.87097906]
[1694121400353,0.0221,26328.0,26327.0,0.87097906]
[1694121400566,0.0201,26328.0,26327.0,3.58706706]
[1694121400782,0.0221,26328.0,26327.0,0.93325906]
[1694121401010,0.0211,26328.0,26327.0,1.14191727]
[1694121401230,0.0211,26328.0,26327.0,3.89582527]
[1694121401464,0.0231,26328.0,26327.0,4.16190527]
[1694121401687,0.0231,26328.0,26327.0,4.33424527]
[1694121401901,0.0201,26329.0,26328.0,0.6936]
[1694121402159,0.0201,26329.0,26328.0,3.61504284]
[1694121402408,0.0164,26329.0,26328.0,4.82705284]
[1694121402650,0.0201,26355.0,26349.0,0.12]
[1694121402895,0.0401,26355.0,26349.0,2.43263722]
[1694121403109,0.02,26354.0,26349.0,0.89760143]
[1694121403337,0.0201,26355.0,26349.0,3.29880543]
[1694121403576,0.0201,26355.0,26352.0,0.6736]
[1694121403785,0.0201,26355.0,26352.0,2.58006322]
[1694121404016,0.02,26354.0,26352.0,0.82475322]
[1694121404287,0.0201,26355.0,26352.0,0.84986854]
[1694121404533,0.0201,26355.0,26352.0,3.66145354]
[1694121404734,0.0201,26355.0,26352.0,3.71761354]
[1694121404955,0.0201,26355.0,26352.0,4.11515804]
[1694121405206,0.0201,26355.0,26352.0,3.50051855]
[1694121405442,0.0012151,26363.0,26362.0,0.526]
[1694121405634,0.0012151,26363.0,26362.0,0.30963]
[1694121405851,0.0012151,26363.0,26362.0,0.06]
[1694121405852,0.0212151,26363.0,26362.0,0.06]
[1694121406076,0.0162151,26360.0,26359.0,0.0783]
[1694121406281,0.0162151,26360.0,26359.0,0.04]
[1694121406505,0.0162151,26360.0,26359.0,0.52449711]
[1694121406753,0.0162151,26360.0,26359.0,0.00484631]
[1694121407180,0.0162151,26364.0,26363.0,0.01984631]
[1694121407472,0.051,26380.0,26371.0,0.01984631]
[1694121407752,0.23699401,26388.0,26363.0,0.42855322]
[1694121407753,0.6,26398.0,26386.0,0.02]
[1694121408098,0.6,26398.0,26396.0,0.01984631]
[1694121408255,0.00936595,26395.0,26394.0,0.01984631]
[1694121408365,0.00436595,26395.0,26394.0,0.01984631]
[1694121408591,0.00436595,26395.0,26394.0,0.12276]
[1694121408834,0.00436595,26395.0,26391.0,0.13338]
[1694121409042,0.01515369,26390.0,26381.0,0.1446]
[1694121409320,0.15042129,26389.0,26382.0,0.38855322]
[1694121409594,0.6,26398.0,26393.0,0.00484631]
[1694121409879,0.6,26398.0,26390.0,0.00484631]
[1694121409880,0.62015369,26398.0,26390.0,0.00484631]
[1694121410008,0.62015369,26398.0,26384.0,0.758034]
[1694121410009,0.02015369,26397.0,26387.0,0.07374]
[1694121410227,0.02015369,26397.0,26394.0,0.01]
[1694121410228,0.005,26395.0,26394.0,0.01]
[1694121410475,0.02015369,26392.0,26391.0,0.025]
[1694121410754,0.02015369,26392.0,26378.0,0.03959723]
[1694121410755,0.02015369,26379.0,26378.0,0.03959723]
[1694121410953,0.15542129,26379.0,26378.0,0.03959723]
[1694121411194,0.15042128,26379.0,26378.0,0.06518083]
[1694121411419,0.01436199,26392.0,26378.0,0.06518083]
[1694121411641,0.38855322,26388.0,26379.0,0.15542129]
[1694121411880,0.38855322,26388.0,26379.0,0.02489545]
[1694121411881,0.38855322,26385.0,26379.0,0.02489545]
[1694121412091,0.5619745,26384.0,26380.0,0.0007266]
[1694121412554,0.6022895,26384.0,26380.0,0.0007266]
[1694121412760,0.46623021,26384.0,26380.0,0.0007266]
[1694121413020,0.3,26383.0,26380.0,0.0003386]
[1694121413246,0.3,26383.0,26378.0,0.03959723]
[1694121413247,0.38855322,26381.0,26378.0,0.03959723]
[1694121413464,0.38855322,26381.0,26380.0,0.004]
[1694121413750,0.72591521,26381.0,26380.0,0.004]
[1694121414390,0.71155322,26381.0,26368.0,0.00892502]
[1694121414650,0.71155322,26381.0,26364.0,0.11714502]
[1694121414651,0.38855322,26373.0,26364.0,0.11714502]
[1694121414894,0.38855322,26373.0,26362.0,0.02]
[1694121414895,0.15042128,26372.0,26370.0,0.02]
[1694121415139,0.15042128,26372.0,26369.0,0.03325647]
[1694121415394,0.15042128,26372.0,26369.0,0.02433145]
[1694121415395,0.38855322,26371.0,26369.0,0.02433145]
[1694121415640,0.5389745,26371.0,26369.0,0.02433145]
[1694121415883,0.38855322,26371.0,26369.0,0.02433145]
[1694121416128,0.38855322,26371.0,26370.0,0.023]
[1694121416378,0.71155322,26371.0,26366.0,0.08]
[1694121416645,0.46170854,26371.0,26370.0,0.02410717]
[1694121416898,0.46170854,26371.0,26369.0,0.023]
[1694121416899,0.023,26370.0,26369.0,0.047]
[1694121417151,0.71155322,26370.0,26369.0,0.047]
[1694121418152,0.8619745,26370.0,26369.0,0.024]
[1694121418387,0.71155322,26370.0,26366.0,0.024]
[1694121418653,0.38855322,26369.0,26362.0,0.08]
[1694121418890,0.15042128,26368.0,26362.0,0.08]
[1694121419149,0.38855322,26367.0,26361.0,0.08892502]
[1694121419398,0.15042128,26366.0,26363.0,0.02365931]
[1694121419660,0.38855322,26365.0,26363.0,0.02365931]
[1694121419888,1.19530522,26365.0,26358.0,0.06892502]
[1694121420151,0.45042128,26364.0,26353.0,0.02]
[1694121420377,0.45042128,26364.0,26354.0,0.02]
[1694121420378,0.02,26361.0,26354.0,0.02]
[1694121420614,0.5389745,26360.0,26354.0,0.02]
[1694121420882,0.5389745,26360.0,26354.0,0.04366663]
[1694121420883,0.023,26359.0,26354.0,0.04366663]
[1694121421122,0.3,26367.0,26363.0,0.02]
[1694121421348,0.3,26367.0,26364.0,0.15542129]
[1694121421349,0.38855322,26366.0,26364.0,0.15542129]
[1694121421587,0.323,26365.0,26364.0,0.15542129]
[1694121421788,0.71155322,26365.0,26363.0,0.02]
[1694121422043,0.38855322,26364.0,26363.0,0.02]
[1694121422316,2.2625,26370.0,26369.0,0.02892502]
[1694121422618,0.9445,26370.0,26369.0,0.18434631]
[1694121422797,0.03077248,26372.0,26371.0,0.02]
[1694121423054,0.03077248,26372.0,26371.0,0.17542129]
[1694121423314,0.05946406,26376.0,26373.0,0.02892502]
[1694121424117,0.01135374,26374.0,26373.0,0.02]
[1694121424120,0.05946406,26376.0,26375.0,0.02892502]
[1694121424319,0.0866018,26380.0,26376.0,0.02]
[1694121424581,0.38855322,26379.0,26377.0,0.15542129]
[1694121424815,0.1460548,26380.0,26377.0,0.15542129]
[1694121424816,0.01128638,26381.0,26380.0,0.02]
[1694121425085,0.01128638,26381.0,26380.0,0.19542129]
[1694121425333,0.06536,26392.0,26385.0,0.02892502]
[1694121425598,0.05809566,26389.0,26387.0,0.02]
[1694121425879,0.38855322,26392.0,26390.0,0.02892502]
[1694121426111,0.41935836,26392.0,26391.0,0.15542129]
[1694121426369,0.38855322,26392.0,26391.0,0.10718286]
[1694121426613,0.38855322,26392.0,26383.0,0.02892502]
[1694121426614,1.61711806,26392.0,26383.0,0.02892502]
[1694121426883,0.02,26382.0,26375.0,0.02]
[1694121427128,0.15542129,26381.0,26374.0,0.02]
[1694121427406,0.15542129,26381.0,26376.0,0.02334816]
[1694121427407,0.02,26379.0,26376.0,0.02334816]
[1694121427722,0.15542129,26378.0,26376.0,0.02334816]
[1694121428023,0.02,26377.0,26376.0,0.02334816]
[1694121428175,0.02,26371.0,26364.0,0.154]
[1694121428426,0.02,26368.0,26364.0,0.154]